bitfinex/quotes_BTCUSD_20260110
["timestamp","ask_amount","ask_price","bid_price","bid_amount"]
[1768022113388,0.04510672,90525.0,90519.0,0.03]
[1768022113549,0.06762672,90526.0,90519.0,0.03]
[1768022114311,0.04510672,90525.0,90519.0,0.03]
[1768022114524,0.03,90522.0,90519.0,0.03]
[1768022115150,0.03,90522.0,90516.0,0.23089729]
[1768022115352,0.03,90522.0,90516.0,0.01104777]
[1768022115688,0.03,90522.0,90517.0,0.01104764]
[1768022117752,0.03,90522.0,90516.0,0.01104777]
[1768022118259,0.03,90522.0,90517.0,0.01104764]
[1768022118463,0.03,90522.0,90516.0,0.01104777]
[1768022118893,0.03,90522.0,90517.0,0.01104764]
[1768022119104,0.03,90522.0,90516.0,0.01104777]
[1768022119253,0.03,90522.0,90517.0,0.01104764]
[1768022119452,0.03,90522.0,90516.0,0.01104777]
[1768022120285,0.03,90522.0,90517.0,0.01104764]
[1768022120666,0.03,90522.0,90516.0,0.01104777]
[1768022120883,0.03,90521.0,90517.0,0.01104764]
[1768022121419,0.03,90521.0,90518.0,0.01104752]
[1768022122048,0.03,90525.0,90519.0,0.0110474]
[1768022123126,0.03,90525.0,90518.0,0.01104752]
[1768022123470,0.03,90525.0,90519.0,0.0110474]
[1768022124300,0.03,90525.0,90520.0,0.01104728]
[1768022124699,0.03,90525.0,90519.0,0.0110474]
[1768022128485,0.03,90525.0,90520.0,0.01104728]
[1768022128711,0.03,90525.0,90519.0,0.0110474]
[1768022129529,0.03,90525.0,90520.0,0.01104728]
[1768022129783,0.03,90525.0,90519.0,0.0110474]
[1768022130032,0.03,90525.0,90520.0,0.01104728]
[1768022130255,0.02252,90526.0,90523.0,0.0456168]
[1768022130422,0.03,90524.0,90523.0,0.05666371]
[1768022130639,0.02212,90525.0,90524.0,0.0466158]
[1768022130929,0.02212,90525.0,90524.0,0.0456168]
[1768022131710,0.021121,90525.0,90524.0,0.0456168]
[1768022135632,0.021121,90525.0,90522.0,0.05869097]
[1768022137853,0.021121,90525.0,90522.0,0.11392609]
[1768022139727,0.021121,90525.0,90523.0,0.04764394]
[1768022143329,0.0157829,90525.0,90523.0,0.04764394]
[1768022143979,0.03,90526.0,90525.0,0.01104667]
[1768022144149,0.03,90526.0,90524.0,0.04764394]
[1768022145558,0.03,90526.0,90524.0,0.04664494]
[1768022145766,0.03,90526.0,90522.0,0.04764394]
[1768022146178,0.03,90526.0,90522.0,0.05869097]
[1768022146388,0.03,90526.0,90522.0,0.04764394]
[1768022146595,0.03,90526.0,90522.0,0.05869097]
[1768022147661,0.03,90526.0,90522.0,0.04764394]
[1768022147870,0.03,90526.0,90522.0,0.05869097]
[1768022149140,0.03,90526.0,90523.0,0.01104691]
[1768022149281,0.03,90526.0,90523.0,0.05869085]
[1768022149910,0.03,90526.0,90523.0,0.01104691]
[1768022150491,0.02212,90527.0,90526.0,0.000999]
[1768022150892,0.02212,90527.0,90524.0,0.01104679]
[1768022153376,0.02212,90527.0,90522.0,0.04603813]
[1768022153574,0.0004,90528.0,90522.0,0.04603813]
[1768022153780,0.03,90527.0,90522.0,0.04603813]
[1768022154113,0.03,90527.0,90522.0,0.01104703]
[1768022156433,0.03,90527.0,90523.0,0.01104691]
[1768022159454,0.03,90527.0,90525.0,0.05523334]
[1768022159866,0.03,90527.0,90524.0,0.06628016]
[1768022160526,0.03,90527.0,90525.0,0.05523325]
[1768022161788,0.03,90527.0,90524.0,0.0662806]
[1768022162830,0.03,90527.0,90524.0,0.01104679]
[1768022165158,0.03,90527.0,90523.0,0.01104691]
[1768022166613,0.03,90527.0,90524.0,0.01104679]
[1768022167020,0.0004,90528.0,90525.0,0.01104667]
[1768022167229,0.03,90526.0,90524.0,0.01104679]
[1768022167587,0.03,90526.0,90518.0,0.01104752]
[1768022167784,0.03,90526.0,90520.0,0.01104728]
[1768022168440,0.03,90526.0,90521.0,0.01104716]
[1768022169383,0.07864698,90524.0,90521.0,0.01104716]
[1768022169584,0.03,90522.0,90521.0,0.01104716]
[1768022170034,0.03,90522.0,90517.0,0.01104764]
[1768022170405,0.03,90522.0,90514.0,0.01104801]
[1768022170640,0.03,90526.0,90514.0,0.01104801]
[1768022171045,0.03,90526.0,90518.0,0.01104752]
[1768022171369,0.03,90526.0,90517.0,0.01104764]
[1768022171562,0.03,90526.0,90518.0,0.01104752]
[1768022171767,0.03,90526.0,90517.0,0.01104764]
[1768022173150,0.03,90526.0,90518.0,0.01104752]
[1768022173358,0.03,90526.0,90517.0,0.01104764]
[1768022175081,0.03,90526.0,90515.0,0.05523901]
[1768022176061,0.03,90526.0,90514.0,0.06628804]
[1768022177401,0.03,90526.0,90517.0,0.01104764]
[1768022180813,0.03,90526.0,90518.0,0.01104752]
[1768022180967,0.03,90526.0,90520.0,0.01104728]
[1768022181168,0.07864698,90526.0,90520.0,0.01104728]
[1768022181435,0.07864698,90526.0,90519.0,0.0110474]
[1768022182971,0.07864698,90526.0,90520.0,0.01104728]
[1768022183382,0.03,90526.0,90520.0,0.01104728]
[1768022183588,0.03,90526.0,90519.0,0.0110474]
[1768022183790,0.03,90526.0,90518.0,0.01104752]
[1768022183960,0.03,90526.0,90520.0,0.01104728]
[1768022184142,0.03,90526.0,90521.0,0.01104716]
[1768022184341,0.03,90526.0,90522.0,0.01104703]
[1768022184571,0.03,90526.0,90521.0,0.01104716]
[1768022184879,0.03,90526.0,90522.0,0.01104703]
[1768022185236,0.03,90526.0,90523.0,0.01104691]
[1768022185583,0.02212,90527.0,90524.0,0.01104679]
[1768022186052,0.02212,90527.0,90525.0,0.05523291]
[1768022186196,0.02212,90527.0,90526.0,0.05523262]
[1768022186403,0.051121,90527.0,90526.0,0.05523262]
[1768022188099,0.051121,90527.0,90526.0,0.0549563]
[1768022195453,0.0004,90528.0,90526.0,0.0549563]
[1768022197430,0.0004,90528.0,90527.0,0.05523214]
[1768022197974,0.0004,90528.0,90526.0,0.0549563]
[1768022198199,0.0004,90528.0,90527.0,0.05523214]
[1768022198926,0.0004,90528.0,90526.0,0.05523272]
[1768022199124,0.0004,90528.0,90525.0,0.01104667]
[1768022199336,0.0004,90528.0,90525.0,0.06628]
[1768022201640,0.0004,90528.0,90525.0,0.01104667]
[1768022202757,0.0004,90528.0,90526.0,0.05523274]
[1768022203191,0.0004,90528.0,90527.0,0.05523214]
[1768022203547,0.0004,90528.0,90525.0,0.01104667]
[1768022203725,0.0004,90528.0,90526.0,0.05523223]
[1768022204365,0.0004,90528.0,90527.0,0.05523214]
[1768022205795,0.0304,90528.0,90525.0,0.06627955]
[1768022206010,0.0304,90528.0,90527.0,0.05523214]
[1768022207501,0.0004,90536.0,90533.0,0.01104569]
[1768022207709,0.02212,90535.0,90533.0,0.01104569]
[1768022207909,0.02212,90535.0,90532.0,0.01104581]
[1768022208362,0.03,90534.0,90532.0,0.01104581]
[1768022217358,0.07749698,90533.0,90532.0,0.01104581]
[1768022218367,0.05212,90533.0,90532.0,0.01104581]
[1768022218564,0.05212,90533.0,90530.0,0.01104606]
[1768022219844,0.05212,90533.0,90530.0,0.0662762]
[1768022220224,0.05212,90533.0,90530.0,0.11494315]
[1768022221068,0.05212,90533.0,90532.0,0.05971276]
[1768022221624,0.05212,90533.0,90529.0,0.05971313]
[1768022221826,0.05212,90533.0,90529.0,0.04866695]
[1768022222027,0.05212,90533.0,90529.0,0.05971313]
[1768022222889,0.05212,90533.0,90530.0,0.01104606]
[1768022223246,0.05212,90533.0,90529.0,0.04866695]
[1768022223521,0.000999,90530.0,90526.0,0.05793589]
[1768022223679,0.02212,90533.0,90530.0,0.000999]
[1768022223894,0.02500672,90532.0,90530.0,0.000999]
[1768022224098,0.02500672,90532.0,90521.0,0.01104716]
[1768022224308,0.02500672,90532.0,90524.0,0.01104679]
[1768022224806,0.05500672,90531.0,90524.0,0.01104679]
[1768022225772,0.05500672,90531.0,90523.0,0.01104691]
[1768022225981,0.05500672,90531.0,90524.0,0.01104679]
[1768022227473,0.03,90521.0,90513.0,0.01104813]
[1768022227706,0.03,90521.0,90514.0,0.01104801]
[1768022228022,0.03,90521.0,90513.0,0.05793747]
[1768022228023,0.03315197,90531.0,90516.0,0.01104777]
[1768022228173,0.01144533,90536.0,90524.0,0.04688934]
[1768022228174,0.02212,90526.0,90524.0,0.04688934]
[1768022228579,0.03,90525.0,90524.0,0.04688934]
[1768022229004,0.03,90525.0,90523.0,0.01104691]
[1768022229363,0.03,90525.0,90522.0,0.01104703]
[1768022232504,0.03,90525.0,90521.0,0.01104716]
[1768022232632,0.03,90525.0,90522.0,0.01104703]
[1768022233179,0.02212,90529.0,90528.0,0.04688934]
[1768022233992,0.05212,90529.0,90528.0,0.04688934]
[1768022235376,0.03,90529.0,90528.0,0.04688934]
[1768022237526,0.02212,90533.0,90530.0,0.04688934]
[1768022237726,0.03,90532.0,90530.0,0.04684427]
[1768022238667,0.03,90532.0,90530.0,0.01998517]
[1768022239080,0.03,90532.0,90524.0,0.05793613]
[1768022239694,0.03,90532.0,90525.0,0.01104667]
[1768022239993,0.03,90532.0,90524.0,0.05793613]
[1768022240213,0.03,90532.0,90525.0,0.01104667]
[1768022241707,0.03,90532.0,90524.0,0.01104679]
[1768022242842,0.03,90532.0,90525.0,0.01104667]
[1768022243600,0.03,90532.0,90523.0,0.01104691]
[1768022244050,0.03,90532.0,90525.0,0.01104667]
[1768022244848,0.03,90532.0,90524.0,0.01104679]
[1768022245357,0.03,90532.0,90525.0,0.04688934]
[1768022246071,0.03,90532.0,90525.0,0.05793601]
[1768022246765,0.03,90532.0,90525.0,0.04688934]
[1768022247374,0.03,90532.0,90525.0,0.05793601]
[1768022249536,0.03,90532.0,90526.0,0.01104655]
[1768022249731,0.03,90532.0,90528.0,0.04688934]
[1768022249930,0.02212,90533.0,90528.0,0.04688934]
[1768022250277,0.02212,90533.0,90528.0,0.05793564]
[1768022251217,0.02212,90533.0,90528.0,0.04688934]
[1768022251391,0.02212,90533.0,90528.0,0.05793564]
[1768022252250,0.02212,90533.0,90528.0,0.0110463]
[1768022253392,0.03354878,90536.0,90528.0,0.0110463]
[1768022253605,0.05212,90535.0,90528.0,0.0110463]
[1768022255225,0.05212,90535.0,90529.0,0.01104618]
[1768022255505,0.05212,90535.0,90528.0,0.0110463]
[1768022255706,0.05212,90535.0,90529.0,0.01104618]
[1768022256236,0.06316642,90535.0,90529.0,0.01104618]
[1768022256417,0.06316642,90535.0,90527.0,0.01104642]
[1768022256619,0.06316642,90535.0,90528.0,0.0110463]
[1768022257041,0.06316642,90535.0,90526.0,0.21982189]
[1768022257578,0.06316642,90535.0,90527.0,0.01104642]
[1768022257713,0.06316642,90535.0,90527.0,0.06089005]
[1768022258221,0.06316642,90535.0,90527.0,0.04984363]
[1768022264346,0.03,90533.0,90527.0,0.04984363]
[1768022267076,0.03,90532.0,90527.0,0.04984363]
[1768022267310,0.05212,90532.0,90527.0,0.04984363]
[1768022282627,0.05212,90532.0,90514.0,0.05686316]
[1768022282628,0.03,90526.0,90514.0,0.05686316]
[1768022282831,0.03811438,90527.0,90526.0,0.00505882]
[1768022282971,0.09334652,90527.0,90526.0,0.00335964]
[1768022283377,0.03811438,90527.0,90526.0,0.00335964]
[1768022284549,0.09334652,90527.0,90526.0,0.00335964]
[1768022284921,0.03811438,90527.0,90526.0,0.00335964]
[1768022285791,0.03795059,90527.0,90526.0,0.00335964]
[1768022286133,0.03600507,90527.0,90526.0,0.00335964]
[1768022286311,0.0091009,90527.0,90526.0,0.00299218]
[1768022287353,0.03,90527.0,90526.0,0.00299218]
[1768022289471,0.04104618,90529.0,90526.0,0.00299218]
[1768022289674,0.03,90529.0,90526.0,0.00299218]
[1768022291098,0.03,90528.0,90526.0,0.00299218]
[1768022292067,0.03,90530.0,90526.0,0.00299218]
[1768022292882,0.04104606,90530.0,90526.0,0.00299218]
[1768022293512,0.03,90528.0,90526.0,0.00299218]
[1768022294673,0.03,90529.0,90526.0,0.00299218]
[1768022296335,0.04104618,90529.0,90526.0,0.00299218]
[1768022298504,0.04104618,90529.0,90515.0,0.05803983]
[1768022298505,0.03,90527.0,90517.0,0.04699194]
[1768022299555,0.03,90526.0,90517.0,0.04699194]
[1768022299768,0.03,90524.0,90517.0,0.04699194]
[1768022307555,0.03,90524.0,90517.0,0.05803958]
[1768022308746,0.03,90524.0,90517.0,0.04699194]
[1768022313084,0.03,90524.0,90519.0,0.04688701]
[1768022313333,0.03,90524.0,90519.0,0.05793441]
[1768022313969,0.03,90524.0,90519.0,0.04688701]
[1768022315488,0.03,90524.0,90519.0,0.05793441]
[1768022315636,0.03,90524.0,90519.0,0.04688701]
[1768022349353,0.03,90524.0,90516.0,0.01104777]
[1768022350277,0.03,90524.0,90517.0,0.01104764]
[1768022351644,0.03,90524.0,90516.0,0.01104777]
[1768022352466,0.03,90524.0,90515.0,0.01104789]
[1768022352673,0.03,90524.0,90514.0,0.0581863]
[1768022353980,0.03,90524.0,90515.0,0.01104789]
[1768022354311,0.03,90524.0,90514.0,0.0581863]
[1768022355494,0.03,90524.0,90515.0,0.01104789]
[1768022356927,0.03,90524.0,90516.0,0.01104777]
[1768022357163,0.03,90524.0,90515.0,0.01104789]
[1768022357369,0.03,90524.0,90516.0,0.01104777]
[1768022359199,0.03,90524.0,90514.0,0.04713829]
[1768022359407,0.03,90524.0,90514.0,0.0581863]
[1768022360344,0.03,90524.0,90514.0,0.04713829]
[1768022360549,0.03,90524.0,90514.0,0.0581863]
[1768022361217,0.03,90524.0,90514.0,0.04713829]
[1768022361819,0.03,90524.0,90514.0,0.0581863]
[1768022362188,0.03,90524.0,90514.0,0.04713829]
[1768022362359,0.03,90524.0,90514.0,0.0581863]
[1768022362744,0.03,90524.0,90515.0,0.01104789]
[1768022363211,0.03,90524.0,90514.0,0.0581863]
[1768022364025,0.03,90524.0,90516.0,0.01104777]
[1768022366299,0.03,90524.0,90517.0,0.01104764]
[1768022366525,0.03,90524.0,90516.0,0.01104777]
[1768022369912,0.03,90524.0,90517.0,0.01104764]
[1768022370957,0.03,90524.0,90516.0,0.01104777]
[1768022373351,0.03,90524.0,90517.0,0.01104764]
[1768022375070,0.03,90524.0,90518.0,0.01104752]
[1768022375251,0.03,90524.0,90518.0,0.01074982]
[1768022375969,0.03,90524.0,90517.0,0.01104764]
[1768022376854,0.03,90524.0,90516.0,0.05845065]
[1768022377611,0.03,90524.0,90516.0,0.04740288]
[1768022378025,0.03,90524.0,90516.0,0.05845065]
[1768022378428,0.03,90524.0,90517.0,0.01104764]
[1768022379152,0.03,90524.0,90516.0,0.05845065]
[1768022379315,0.03,90524.0,90517.0,0.01104764]
[1768022380306,0.03,90524.0,90516.0,0.05845065]
[1768022381011,0.03,90524.0,90517.0,0.01104764]
[1768022381934,0.03,90524.0,90516.0,0.05845065]
[1768022383072,0.03,90524.0,90516.0,0.04740288]
[1768022386214,0.03,90524.0,90516.0,0.05845065]
[1768022386574,0.03,90524.0,90517.0,0.01104764]
[1768022387138,0.03,90524.0,90516.0,0.05845065]
[1768022388002,0.03,90524.0,90516.0,0.04740288]
[1768022389218,0.03,90524.0,90516.0,0.04733475]
[1768022389964,0.03,90524.0,90516.0,0.05838252]
[1768022391262,0.03,90524.0,90516.0,0.04733475]
[1768022395760,0.03,90524.0,90516.0,0.05838252]
[1768022396116,0.03,90524.0,90516.0,0.04726662]
[1768022397948,0.03,90524.0,90516.0,0.05831439]
[1768022398395,0.03,90524.0,90517.0,0.01104764]
[1768022398624,0.03,90524.0,90516.0,0.05831439]
[1768022399597,0.03,90524.0,90516.0,0.04726662]
[1768022399800,0.03,90524.0,90516.0,0.05831439]
[1768022400033,0.03,90524.0,90516.0,0.04726662]
[1768022403745,0.03,90524.0,90516.0,0.05831439]
[1768022403959,0.03,90524.0,90516.0,0.04726662]
[1768022404143,0.03,90524.0,90516.0,0.05831439]
[1768022405320,0.03,90524.0,90516.0,0.04726662]
[1768022405747,0.03,90524.0,90516.0,0.05831439]
[1768022406503,0.03,90524.0,90517.0,0.01104764]
[1768022406931,0.03,90524.0,90516.0,0.04726662]
[1768022407344,0.03,90524.0,90516.0,0.05831439]
[1768022409176,0.03,90524.0,90516.0,0.05824626]
[1768022410201,0.03,90524.0,90516.0,0.04719849]
[1768022410381,0.03,90524.0,90516.0,0.05824626]
[1768022410776,0.03,90524.0,90516.0,0.04719849]
[1768022415311,0.03,90524.0,90516.0,0.05824626]
[1768022416254,0.03,90524.0,90516.0,0.05817813]
[1768022418825,0.03,90524.0,90517.0,0.01104764]
[1768022419124,0.03,90524.0,90518.0,0.01104752]
[1768022419900,0.02212,90525.0,90524.0,0.000999]
[1768022420096,0.02202987,90525.0,90524.0,0.000999]
[1768022420297,0.03,90527.0,90520.0,0.01104728]
[1768022420512,0.03,90527.0,90518.0,0.01104752]
[1768022420713,0.03,90527.0,90519.0,0.0110474]
[1768022420913,0.03,90527.0,90518.0,0.01104752]
[1768022421445,0.03,90527.0,90519.0,0.0110474]
[1768022421660,0.03,90527.0,90517.0,0.06025919]
[1768022421860,0.03,90527.0,90520.0,0.01104728]
[1768022422043,0.03,90527.0,90519.0,0.0110474]
[1768022423402,0.03,90527.0,90517.0,0.04921155]
[1768022423806,0.03,90527.0,90517.0,0.06025919]
[1768022424430,0.03,90527.0,90517.0,0.04921155]
[1768022424632,0.03,90527.0,90517.0,0.06025919]
[1768022425626,0.03,90527.0,90518.0,0.01104752]
[1768022426072,0.03,90527.0,90517.0,0.06025919]
[1768022426305,0.03,90527.0,90518.0,0.01104752]
[1768022426871,0.03,90527.0,90519.0,0.0110474]
[1768022430995,0.03,90527.0,90520.0,0.01104728]
[1768022431411,0.03,90527.0,90519.0,0.0110474]
[1768022431657,0.03,90527.0,90517.0,0.04921155]
[1768022431858,0.03,90527.0,90519.0,0.0110474]
[1768022432659,0.03,90527.0,90518.0,0.01104752]
[1768022432814,0.03,90527.0,90517.0,0.06025919]
[1768022433250,0.03,90527.0,90517.0,0.04921155]
[1768022433489,0.03,90527.0,90518.0,0.01104752]
[1768022433698,0.03,90527.0,90517.0,0.04921155]
[1768022434072,0.03,90527.0,90517.0,0.06025919]
[1768022434546,0.03,90527.0,90518.0,0.01104752]
[1768022435211,0.03,90527.0,90519.0,0.0110474]
[1768022436576,0.03,90527.0,90518.0,0.01104752]
[1768022437426,0.03,90527.0,90519.0,0.0110474]
[1768022437730,0.03,90527.0,90518.0,0.01104752]
[1768022439556,0.03,90527.0,90517.0,0.06025919]
[1768022439732,0.03,90527.0,90518.0,0.01104752]
[1768022442444,0.03,90527.0,90517.0,0.06025919]
[1768022442893,0.03,90527.0,90517.0,0.04921155]
[1768022444290,0.03,90527.0,90518.0,0.01104752]
[1768022447927,0.03,90527.0,90517.0,0.04921155]
[1768022448104,0.03,90527.0,90518.0,0.01104752]
[1768022449894,0.03,90527.0,90519.0,0.0110474]
[1768022450095,0.03,90527.0,90517.0,0.04921155]
[1768022450301,0.03,90527.0,90518.0,0.01104752]
[1768022450706,0.03,90527.0,90517.0,0.06025919]
[1768022451952,0.03,90527.0,90518.0,0.01104752]
[1768022453234,0.03,90527.0,90519.0,0.0110474]
[1768022453786,0.03,90527.0,90518.0,0.01104752]
[1768022454126,0.03,90527.0,90517.0,0.04921155]
[1768022454779,0.03,90527.0,90518.0,0.01104752]
[1768022461236,0.03,90527.0,90517.0,0.06025919]
[1768022462211,0.03,90527.0,90517.0,0.04921155]
[1768022462407,0.03,90527.0,90517.0,0.06025919]
[1768022462678,0.03,90527.0,90523.0,0.01104691]
[1768022463744,0.03,90527.0,90524.0,0.01104679]
[1768022464130,0.03,90527.0,90523.0,0.01104691]
[1768022464530,0.03,90527.0,90524.0,0.01104679]
[1768022467629,0.03,90528.0,90525.0,0.05713047]
[1768022468545,0.02212,90532.0,90526.0,0.01104655]
[1768022468753,0.03,90531.0,90528.0,0.000999]
[1768022468963,0.03,90531.0,90526.0,0.05713035]
[1768022469384,0.03,90531.0,90527.0,0.01104642]
[1768022470714,0.03,90531.0,90526.0,0.05713035]
[1768022471991,0.03,90531.0,90527.0,0.01104642]
[1768022472193,0.03,90531.0,90526.0,0.05713035]
[1768022472397,0.03,90531.0,90527.0,0.01104642]
[1768022472603,0.03,90531.0,90527.0,0.05713022]
[1768022473165,0.03,90531.0,90527.0,0.0460838]
[1768022478327,0.02101534,90532.0,90527.0,0.0460838]
[1768022480142,0.02101534,90532.0,90527.0,0.05713022]
[1768022480348,0.02101534,90532.0,90527.0,0.0460838]
[1768022480551,0.02101534,90532.0,90527.0,0.05713022]
[1768022481110,0.02074982,90532.0,90527.0,0.05713022]
[1768022481326,0.02074982,90532.0,90527.0,0.0460838]
[1768022483542,0.02074982,90532.0,90526.0,0.01104655]
[1768022483738,0.02074982,90532.0,90526.0,0.05713035]
[1768022484750,0.02074982,90532.0,90528.0,0.0460838]
[1768022486724,0.02074982,90532.0,90528.0,0.0571301]
[1768022487313,0.02074982,90532.0,90528.0,0.0460838]
[1768022488326,0.02074982,90532.0,90528.0,0.0571301]
[1768022490060,0.02074982,90532.0,90528.0,0.0110463]
[1768022490380,0.03,90537.0,90529.0,0.05712998]
[1768022490381,0.0304,90536.0,90529.0,0.05712998]
[1768022490527,0.03,90531.0,90529.0,0.05712998]
[1768022490722,0.04929669,90533.0,90532.0,0.03]
[1768022490951,0.04929669,90533.0,90532.0,0.02993188]
[1768022491557,0.02212,90533.0,90532.0,0.02993188]
[1768022491756,0.05202987,90533.0,90532.0,0.02993188]
[1768022492152,0.05202987,90533.0,90531.0,0.00110606]
[1768022492747,0.04319208,90533.0,90531.0,0.00110606]
[1768022492949,0.06107967,90533.0,90532.0,0.05522909]
[1768022493157,0.06008067,90533.0,90532.0,0.05522909]
[1768022493373,0.03194472,90533.0,90532.0,0.05522909]
[1768022493771,0.03194472,90533.0,90531.0,0.00110606]
[1768022494145,0.03194472,90533.0,90531.0,0.05633575]
[1768022494347,0.03185458,90533.0,90531.0,0.05633575]
[1768022494548,0.00185458,90533.0,90532.0,0.03]
[1768022495290,0.0004,90536.0,90531.0,0.00110606]
[1768022495489,0.0004,90536.0,90532.0,0.04753818]
[1768022495643,0.0304,90536.0,90532.0,0.05858399]
[1768022495814,0.0304,90536.0,90532.0,0.04753818]
[1768022496034,0.0304,90536.0,90531.0,0.00110606]
[1768022496240,0.0304,90536.0,90531.0,0.05969018]
[1768022496689,0.03,90535.0,90531.0,0.05969018]
[1768022497261,0.03,90535.0,90532.0,0.0003375]
[1768022497469,0.03,90535.0,90531.0,0.05969018]
[1768022497688,0.0004,90536.0,90531.0,0.05969018]
[1768022498223,0.0004,90536.0,90532.0,0.01104581]
[1768022498805,0.02212,90542.0,90532.0,0.01104581]
[1768022498806,0.0001511,90557.0,90542.0,0.04753818]
[1768022499004,0.0001511,90557.0,90546.0,0.04753818]
[1768022499005,0.02212,90555.0,90546.0,0.04753818]
[1768022499186,0.02212,90555.0,90546.0,0.04653918]
[1768022499605,0.02212,90555.0,90547.0,0.02212]
[1768022499856,0.03,90552.0,90547.0,0.02212]
[1768022500953,0.04104362,90550.0,90547.0,0.02212]
[1768022501159,0.03,90550.0,90547.0,0.02212]
[1768022502582,0.03,90549.0,90546.0,0.04653918]
[1768022503615,0.01104337,90552.0,90548.0,0.03]
[1768022503993,0.01104337,90552.0,90551.0,0.00024508]
[1768022504686,0.04104337,90552.0,90551.0,0.00024508]
[1768022504987,0.03,90552.0,90551.0,0.00024508]
[1768022505420,0.03,90539.0,90536.0,4.102e-05]
[1768022505632,0.01104459,90542.0,90536.0,4.102e-05]
[1768022505633,0.02817569,90540.0,90536.0,4.102e-05]
[1768022506983,0.11340173,90537.0,90536.0,4.102e-05]
[1768022507186,0.05817569,90537.0,90536.0,4.102e-05]
[1768022518169,0.03,90537.0,90536.0,4.102e-05]
[1768022519271,0.03,90538.0,90536.0,4.102e-05]
[1768022520732,0.03,90537.0,90536.0,4.102e-05]
[1768022522099,0.05817569,90537.0,90536.0,4.102e-05]
[1768022522327,0.11340173,90537.0,90536.0,4.102e-05]
[1768022522528,0.05817569,90526.0,90525.0,0.0001511]
[1768022522726,0.03007398,90526.0,90525.0,0.04589827]
[1768022524732,7.398e-05,90526.0,90525.0,0.04589827]
[1768022529483,9.8e-07,90526.0,90525.0,0.04589827]
[1768022535476,9.8e-07,90526.0,90525.0,7.81e-05]
[1768022542571,0.03000098,90526.0,90525.0,7.81e-05]
[1768022551846,0.02212,90527.0,90525.0,7.81e-05]
[1768022553983,0.02203054,90527.0,90525.0,7.81e-05]
[1768022564138,0.02103154,90527.0,90525.0,7.81e-05]
[1768022565762,0.02094208,90527.0,90525.0,7.81e-05]
[1768022578602,0.02085262,90527.0,90525.0,7.81e-05]
[1768022581771,0.07608527,90527.0,90525.0,7.81e-05]
[1768022581972,0.02085262,90527.0,90525.0,7.81e-05]
[1768022582327,0.02085262,90527.0,90526.0,0.0482406]
[1768022582512,0.02085262,90527.0,90526.0,0.04819553]
[1768022586996,0.02076317,90527.0,90526.0,0.04819553]
[1768022588011,0.02076317,90527.0,90525.0,7.81e-05]
[1768022590356,0.02067372,90527.0,90525.0,7.81e-05]
[1768022592675,0.02067372,90527.0,90525.0,1e-07]
[1768022596062,0.02058428,90527.0,90525.0,1e-07]
[1768022616940,0.03,90527.0,90526.0,0.04586654]
[1768022617111,0.01104569,90533.0,90527.0,0.04594454]
[1768022617292,0.01104569,90533.0,90527.0,0.04586654]
[1768022617499,0.02212,90532.0,90527.0,0.04586654]
[1768022618099,0.03,90531.0,90527.0,0.04586654]
[1768022618601,0.02212,90532.0,90531.0,7.8e-05]
[1768022619063,0.02212,90532.0,90527.0,0.04586654]
[1768022619623,0.022042,90532.0,90527.0,0.04586654]
[1768022620564,0.03,90530.0,90527.0,0.04586654]
[1768022620821,0.03004282,90530.0,90527.0,0.04586654]
[1768022632892,0.03004282,90530.0,90527.0,0.04579842]
[1768022645236,0.11715487,90546.0,90526.0,0.01104655]
[1768022645439,0.02212,90536.0,90531.0,0.04647495]
[1768022646409,0.03,90535.0,90531.0,0.04647495]
[1768022647698,0.03,90535.0,90525.0,1e-07]
[1768022647908,0.000999,90531.0,90525.0,1e-07]
[1768022648084,0.03,90535.0,90525.0,1e-07]
[1768022650470,0.04104545,90535.0,90525.0,1e-07]
[1768022651479,0.03,90533.0,90525.0,1e-07]
[1768022652490,0.03,90535.0,90525.0,1e-07]
[1768022659764,0.03,90535.0,90525.0,0.01104677]
[1768022659966,0.03,90535.0,90525.0,1e-07]
[1768022662279,0.03,90535.0,90525.0,0.01104677]
[1768022662794,0.03,90535.0,90525.0,1e-07]
[1768022663094,0.03,90535.0,90525.0,0.01104677]
[1768022663651,0.03,90535.0,90525.0,1e-07]
[1768022666846,0.03,90535.0,90526.0,0.0575215]
[1768022667267,0.03,90535.0,90527.0,0.01104642]
[1768022667473,0.03,90535.0,90527.0,0.0109783]
[1768022667613,0.03,90535.0,90526.0,0.0575215]
[1768022668108,0.03,90535.0,90527.0,0.01104642]
[1768022668314,0.03,90535.0,90527.0,0.05752137]
[1768022668773,0.03,90535.0,90527.0,0.04647495]
[1768022668975,0.03,90535.0,90527.0,0.05752137]
[1768022670000,0.03,90535.0,90527.0,0.04647495]
[1768022670175,0.03,90535.0,90527.0,0.05752137]
[1768022671599,0.03,90535.0,90527.0,0.04647495]
[1768022675647,0.03,90535.0,90527.0,0.05752137]
[1768022680760,0.03,90535.0,90527.0,0.05715547]
[1768022685455,0.03,90535.0,90528.0,0.0110463]
[1768022685688,0.03,90535.0,90527.0,0.05715547]
[1768022686080,0.03,90535.0,90528.0,0.0110463]
[1768022687353,0.03,90534.0,90528.0,0.0110463]
[1768022687579,0.03,90534.0,90529.0,0.01104618]
[1768022688510,0.03,90533.0,90528.0,0.0110463]
[1768022689528,0.03,90536.0,90528.0,0.0110463]
[1768022690136,0.03,90536.0,90527.0,0.04610905]
[1768022690338,0.03,90536.0,90527.0,0.05715547]
[1768022690993,0.03,90536.0,90527.0,0.04610905]
[1768022692364,0.03,90536.0,90527.0,0.05715547]
[1768022693615,0.03,90536.0,90527.0,0.05708735]
[1768022693812,0.03,90536.0,90528.0,0.0110463]
[1768022694179,0.03,90536.0,90527.0,0.05708735]
[1768022695093,0.03,90536.0,90527.0,0.04604093]
[1768022695302,0.03,90536.0,90528.0,0.0110463]
[1768022695529,0.03,90536.0,90527.0,0.05708735]
[1768022697586,0.03,90536.0,90528.0,0.0110463]